bitfinex/quotes_BTCUSD_20250527
["timestamp","ask_amount","ask_price","bid_price","bid_amount"]
[1748356970753,0.23137791,109410.0,109400.0,0.835]
[1748356971392,0.26397791,109410.0,109400.0,0.495]
[1748356971615,0.18476523,109430.0,109410.0,0.02741904]
[1748356971829,0.01927893,109410.0,109400.0,1.56329066]
[1748356972042,0.22035726,109410.0,109400.0,1.9556373]
[1748356972250,0.01927935,109410.0,109400.0,1.44084993]
[1748356972480,0.21121792,109410.0,109400.0,1.43170958]
[1748356972686,0.01927935,109410.0,109400.0,1.44999019]
[1748356972896,0.20207799,109410.0,109400.0,1.44085001]
[1748356973101,0.22035776,109410.0,109400.0,1.73735001]
[1748356973338,0.001,109410.0,109400.0,1.44999036]
[1748356973542,0.002,109430.0,109420.0,0.55019822]
[1748356973762,0.002,109430.0,109420.0,0.34]
[1748356973763,0.23384116,109430.0,109420.0,0.34]
[1748356974192,0.26384116,109430.0,109420.0,0.34]
[1748356974447,0.30550016,109430.0,109420.0,0.01124082]
[1748356974680,0.19192095,109420.0,109410.0,0.44052]
[1748356974888,0.25272095,109420.0,109410.0,0.44052]
[1748356975096,0.25272095,109420.0,109410.0,0.52279864]
[1748356975562,0.25272095,109420.0,109410.0,0.34]
[1748356975772,0.002,109430.0,109410.0,0.34]
[1748356975980,0.01827777,109420.0,109410.0,0.34]
[1748356976187,0.20105971,109420.0,109410.0,0.53193857]
[1748356976392,0.23255971,109420.0,109410.0,0.34]
[1748356977244,0.47180937,109450.0,109410.0,0.34]
[1748356977435,0.005,109420.0,109410.0,0.99034769]
[1748356977644,0.005,109420.0,109410.0,3.25090465]
[1748356977858,0.005,109420.0,109410.0,3.28130465]
[1748356978082,0.003,109420.0,109410.0,3.28130465]
[1748356978295,0.01827527,109430.0,109420.0,0.58029822]
[1748356978510,0.00913751,109430.0,109420.0,1.51997317]
[1748356978745,0.01827518,109430.0,109420.0,1.51997317]
[1748356979451,0.01827518,109430.0,109420.0,1.24684717]
[1748356979664,0.02673669,109430.0,109420.0,1.24684717]
[1748356979918,0.03587444,109430.0,109420.0,1.17383717]
[1748356980347,0.04601236,109430.0,109420.0,1.11912017]
[1748356980567,0.22877825,109430.0,109420.0,0.76156495]
[1748356980786,0.24270282,109430.0,109420.0,0.367404]
[1748356981470,0.24270282,109430.0,109420.0,0.55018594]
[1748356981756,0.21050282,109430.0,109420.0,0.367404]
[1748356984251,0.25712087,109420.0,109410.0,0.35259633]
[1748356984469,0.19192087,109420.0,109410.0,0.42205596]
[1748356984675,0.20105971,109420.0,109410.0,0.5445349]
[1748356984876,0.00913834,109420.0,109410.0,0.80003738]
[1748356985096,0.19222673,109430.0,109420.0,0.27239822]
[1748356985097,0.0094615,109430.0,109420.0,0.27239822]
[1748356985302,0.0094615,109430.0,109420.0,1.61991762]
[1748356985303,0.21964083,109430.0,109420.0,1.61991762]
[1748356985513,0.0094615,109430.0,109420.0,2.32555613]
[1748356985734,0.01759901,109430.0,109420.0,2.35775613]
[1748356985941,0.04501245,109430.0,109420.0,3.39078013]
[1748356986144,0.04501236,109430.0,109420.0,3.33532213]
[1748356986353,0.04501236,109430.0,109420.0,3.30717113]
[1748356986354,0.03587444,109430.0,109420.0,3.30717113]
[1748356986563,0.22777768,109430.0,109420.0,2.45004786]
[1748356986769,0.04601303,109430.0,109420.0,2.2001541]
[1748356987177,0.04601303,109430.0,109420.0,1.9940901]
[1748356987381,0.04601286,109430.0,109420.0,1.9940901]
[1748356987598,0.23791626,109430.0,109420.0,1.80036118]
[1748356987820,0.21050299,109430.0,109420.0,0.82281]
[1748356988021,0.21050299,109430.0,109420.0,0.52333]
[1748356988241,0.21050299,109430.0,109420.0,0.6365]
[1748356988454,0.24150299,109430.0,109420.0,0.39702]
[1748356988660,0.28394319,109430.0,109420.0,0.39702]
[1748356988860,0.31544319,109430.0,109420.0,0.39702]
[1748356989067,0.28394319,109430.0,109420.0,0.39702]
[1748356989485,0.24150299,109430.0,109420.0,0.39702]
[1748356990695,0.24150299,109430.0,109420.0,0.2965]
[1748356990919,0.24150299,109430.0,109420.0,0.39702]
[1748356991109,0.24150299,109430.0,109420.0,0.10052]
[1748356991965,0.22322087,109420.0,109410.0,0.74699633]
[1748356992188,0.22322087,109420.0,109410.0,0.84751633]
[1748356992838,0.22322087,109420.0,109410.0,0.49592]
[1748356992839,0.27702102,109420.0,109410.0,0.49592]
[1748356993063,0.30852102,109420.0,109410.0,0.49592]
[1748356993486,0.39957497,109420.0,109410.0,0.49592]
[1748356993700,0.39957497,109420.0,109410.0,0.3954]
[1748356993930,0.34577482,109420.0,109410.0,0.3954]
[1748356994148,0.34577482,109420.0,109410.0,0.3964]
[1748356994415,0.34577482,109420.0,109410.0,0.3954]
[1748356994630,0.34677482,109420.0,109410.0,0.3954]
[1748356995054,0.34877482,109420.0,109410.0,0.3954]
[1748356995733,0.36331567,109420.0,109410.0,0.001]
[1748356996818,0.66783567,109420.0,109410.0,0.001]
[1748356999423,0.36331567,109420.0,109410.0,0.001]
[1748356999639,0.62175482,109420.0,109410.0,0.001]
[1748357000069,0.31727482,109420.0,109410.0,0.001]
[1748357000299,0.62175482,109420.0,109410.0,0.001]
[1748357000512,0.65365482,109420.0,109410.0,0.001]
[1748357000736,0.66819567,109420.0,109410.0,0.001]
[1748357004039,1.10436363,109420.0,109410.0,0.001]
[1748357004314,0.26847925,109410.0,109400.0,0.002]
[1748357004540,0.3595332,109410.0,109400.0,0.002]
[1748357004776,0.6639732,109410.0,109400.0,0.002]
[1748357005640,0.6335732,109410.0,109400.0,0.002]
[1748357006087,0.6639732,109410.0,109400.0,0.002]
[1748357006302,0.76002715,109410.0,109400.0,0.002]
[1748357006517,0.81490715,109410.0,109400.0,0.002]
[1748357006725,0.76002715,109410.0,109400.0,0.002]
[1748357007187,0.6719732,109410.0,109400.0,0.002]
[1748357007406,0.29099235,109410.0,109400.0,0.002]
[1748357007628,0.29099235,109410.0,109400.0,0.003]
[1748357008528,0.28599235,109410.0,109400.0,0.003]
[1748357008748,0.28899235,109410.0,109400.0,0.003]
[1748357008966,0.28899235,109410.0,109400.0,0.0336]
[1748357009636,0.28599235,109410.0,109400.0,0.0336]
[1748357009891,0.28799235,109410.0,109400.0,0.0336]
[1748357010557,0.20607757,109410.0,109400.0,0.94854442]
[1748357010778,0.21521733,109410.0,109400.0,0.84563396]
[1748357011030,0.1969384,109410.0,109400.0,0.16524]
[1748357011530,0.1969384,109410.0,109400.0,0.279015]
[1748357011985,0.1969384,109410.0,109400.0,0.13222914]
[1748357012519,0.1969384,109410.0,109400.0,0.1002]
[1748357012967,0.18779864,109410.0,109400.0,0.1002]
[1748357015140,0.18779864,109410.0,109400.0,0.1321]
[1748357015560,0.18779864,109410.0,109400.0,0.1002]
[1748357015787,0.19195595,109400.0,109390.0,0.46358096]
[1748357016010,0.19195595,109400.0,109390.0,0.127613]
[1748357016222,0.19195595,109400.0,109380.0,0.0589639]
[1748357016223,0.19197349,109390.0,109380.0,0.0589639]
[1748357016439,0.19197349,109390.0,109380.0,0.1546809]
[1748357016658,0.19197349,109390.0,109380.0,0.1272639]
[1748357017091,0.19197349,109390.0,109380.0,0.1585639]
[1748357017583,0.19197349,109390.0,109380.0,0.12741238]
[1748357017809,0.22945237,109390.0,109380.0,0.02721238]
[1748357018022,0.22945237,109390.0,109380.0,0.12741238]
[1748357018456,0.19197349,109390.0,109380.0,0.12741238]
[1748357020472,0.18281535,109400.0,109390.0,0.0395416]
[1748357020473,0.20109662,109400.0,109390.0,0.0395416]
[1748357020692,0.01828077,109400.0,109390.0,0.90997714]
[1748357020910,0.0274207,109400.0,109390.0,0.92825933]
[1748357021143,0.02742054,109400.0,109390.0,3.88427033]
[1748357021361,0.03656105,109400.0,109390.0,3.88427033]
[1748357021575,0.03656097,109400.0,109390.0,3.86357033]
[1748357021999,0.03656097,109400.0,109390.0,5.09762133]
[1748357022214,0.04570148,109400.0,109390.0,4.69158533]
[1748357022443,0.04870148,109400.0,109390.0,4.69158533]
[1748357022660,0.2213774,109400.0,109390.0,1.69444304]
[1748357022873,0.03856189,109400.0,109390.0,1.7238665]
[1748357023093,0.03656189,109400.0,109390.0,3.6976835]
[1748357023307,0.03656189,109400.0,109390.0,3.6986835]
[1748357023742,0.20105987,109420.0,109410.0,0.56463857]
[1748357024000,0.20105987,109420.0,109410.0,1.24156257]
[1748357024214,0.20105987,109420.0,109410.0,1.04283693]
[1748357024435,0.20105987,109420.0,109410.0,1.033697]
[1748357024645,0.19192103,109420.0,109410.0,1.433697]
[1748357024865,0.18278194,109420.0,109410.0,1.61649564]
[1748357025099,0.18278194,109420.0,109410.0,1.6256354]
[1748357025356,0.19322673,109430.0,109420.0,0.53192103]
[1748357025576,0.01959909,109430.0,109420.0,1.15015922]
[1748357025799,0.03787502,109430.0,109420.0,1.99118722]
[1748357026237,0.03787502,109430.0,109420.0,2.29522722]
[1748357026681,0.0134615,109430.0,109420.0,5.58648822]
[1748357026907,0.0134615,109430.0,109420.0,4.28737022]
[1748357027127,0.00315928,109430.0,109420.0,2.01292926]
[1748357027344,0.00315928,109430.0,109420.0,2.44909722]
[1748357027791,0.00315928,109430.0,109420.0,5.74520122]
[1748357028033,0.01229679,109430.0,109420.0,5.74520122]
[1748357028457,0.00515928,109430.0,109420.0,5.74520122]
[1748357028677,0.00415928,109430.0,109420.0,6.92405422]
[1748357029121,0.00315928,109430.0,109420.0,6.92705422]
[1748357029540,0.00315928,109430.0,109420.0,6.92905422]
[1748357030437,0.21881839,109450.0,109440.0,0.21016004]
[1748357030646,0.21881839,109450.0,109440.0,2.32013603]
[1748357030647,0.21896684,109450.0,109440.0,2.32013603]
[1748357031076,0.21896684,109450.0,109440.0,2.72927312]
[1748357031515,0.00882442,109450.0,109440.0,3.07840996]
[1748357031758,0.01979599,109450.0,109440.0,4.35697496]
[1748357031984,0.20964044,109460.0,109450.0,0.01827259]
[1748357031985,0.02692523,109460.0,109450.0,0.01827259]
[1748357032237,0.0086543,109460.0,109450.0,3.07406834]
[1748357032466,0.0177893,109460.0,109450.0,3.07406834]
[1748357032703,0.02692455,109460.0,109450.0,3.96306834]
[1748357032948,0.03605997,109460.0,109450.0,7.70915134]
[1748357033236,0.0177893,109460.0,109450.0,7.70915134]
[1748357033459,0.21977603,109460.0,109450.0,3.43296325]
[1748357033685,0.21977603,109460.0,109450.0,3.44409967]
[1748357033909,0.21977603,109460.0,109450.0,3.67858367]
[1748357034131,0.21977603,109460.0,109450.0,3.68772001]
[1748357034590,0.21977603,109460.0,109450.0,3.69685626]
[1748357034591,0.21877603,109460.0,109450.0,3.69685626]
[1748357034821,0.21877603,109460.0,109450.0,6.33027426]
[1748357035052,0.21877603,109460.0,109450.0,6.07594726]
[1748357035271,0.21877603,109460.0,109450.0,6.41594726]
[1748357035497,0.21877603,109460.0,109450.0,6.35921026]
[1748357035729,0.21877603,109460.0,109450.0,6.14493026]
[1748357035962,0.20964069,109460.0,109450.0,3.90487867]
[1748357036192,0.20964069,109460.0,109450.0,3.91401501]
[1748357036472,0.0086543,109460.0,109450.0,3.93228726]
[1748357036743,0.02718408,109470.0,109460.0,0.2761214]
[1748357036998,0.01779073,109480.0,109470.0,2.33967719]
[1748357037292,0.20960675,109480.0,109470.0,1.02857174]
[1748357037569,0.2096065,109480.0,109470.0,2.05402495]
[1748357037841,0.2096065,109480.0,109470.0,2.0722937]
[1748357037842,0.02692449,109480.0,109470.0,2.0722937]
[1748357038052,0.03605824,109480.0,109470.0,1.5527787]
[1748357038294,0.21874,109480.0,109470.0,2.28189494]
[1748357038534,0.21874082,109480.0,109470.0,2.09041753]
[1748357038772,0.02692498,109480.0,109470.0,2.09041753]
[1748357038990,0.22787482,109480.0,109470.0,2.09955195]
[1748357039225,0.20960724,109480.0,109470.0,1.71905781]
[1748357039450,0.21060724,109480.0,109470.0,2.17349486]
[1748357039674,0.21060724,109480.0,109470.0,1.98006719]
[1748357039904,0.21060724,109480.0,109470.0,1.94988728]
[1748357040133,0.21060724,109480.0,109470.0,2.29449911]
[1748357040377,0.21060724,109480.0,109470.0,2.10266583]
[1748357040618,0.21060724,109480.0,109470.0,1.91327991]
[1748357040835,0.01879073,109480.0,109470.0,2.0594041]
[1748357041051,0.01879073,109480.0,109470.0,2.0922041]
[1748357041052,0.0096574,109480.0,109470.0,2.0922041]
[1748357041266,0.0096574,109480.0,109470.0,5.1712161]
[1748357041477,0.0096574,109480.0,109470.0,5.0883321]
[1748357041963,0.0096574,109480.0,109470.0,6.2738321]
[1748357042183,0.0127221,109490.0,109480.0,5.67930597]
[1748357042421,0.0127221,109490.0,109480.0,6.46319352]
[1748357042640,0.01287049,109490.0,109480.0,4.29644052]
[1748357042863,0.01287049,109490.0,109480.0,5.09539763]
[1748357043093,0.02200307,109490.0,109480.0,5.09539763]
[1748357043378,0.01287049,109490.0,109480.0,2.43023963]
[1748357043612,0.02200299,109490.0,109480.0,6.30014763]
[1748357043849,0.02200299,109490.0,109480.0,6.64014763]
[1748357044092,0.02200299,109490.0,109480.0,6.26286697]
[1748357044333,0.22293433,109490.0,109480.0,2.34699839]
[1748357044578,0.22293433,109490.0,109480.0,2.39230035]
[1748357044807,0.22293433,109490.0,109480.0,1.98902035]
[1748357045037,0.22293433,109490.0,109480.0,2.0999541]
[1748357045483,0.22293433,109490.0,109480.0,2.14992135]
[1748357045708,0.22293433,109490.0,109480.0,2.1316541]
[1748357045949,0.21380166,109490.0,109480.0,1.88987051]
[1748357046174,0.21480166,109490.0,109480.0,1.88987051]
[1748357046627,0.21480166,109490.0,109480.0,2.37275227]
[1748357046849,0.21480166,109490.0,109480.0,2.48168627]
[1748357047069,0.21480166,109490.0,109480.0,1.70584375]
[1748357047293,0.21480166,109490.0,109480.0,1.71497775]
[1748357047737,0.20566874,109490.0,109480.0,0.98317396]
[1748357047977,0.26946874,109490.0,109480.0,0.029387]
[1748357048257,0.34665299,109490.0,109480.0,0.1018]
[1748357048488,0.34665299,109490.0,109480.0,0.002]
[1748357048710,0.34665299,109490.0,109480.0,0.1018]
[1748357049386,0.26946874,109490.0,109480.0,0.1018]
[1748357052636,0.20566874,109490.0,109480.0,0.1018]
[1748357053309,0.23566874,109490.0,109480.0,0.1018]
[1748357053528,0.20566874,109490.0,109480.0,0.1018]
[1748357054382,0.26786874,109490.0,109480.0,0.002]
[1748357054606,0.26786874,109490.0,109480.0,0.1018]
[1748357054837,0.23676874,109490.0,109480.0,0.1018]
[1748357055472,0.31067099,109490.0,109480.0,0.002]
[1748357055689,0.26846874,109490.0,109480.0,0.10144]
[1748357056991,0.23676874,109490.0,109480.0,0.10144]
[1748357057256,0.26706874,109490.0,109480.0,0.10144]
[1748357057785,0.20566874,109490.0,109480.0,0.10144]
[1748357058267,0.20566874,109490.0,109480.0,0.44144]
[1748357059185,0.23816874,109490.0,109480.0,0.45227031]
[1748357059420,0.30790923,109490.0,109480.0,0.11227031]
[1748357059652,0.33900923,109490.0,109480.0,0.10144]
[1748357060156,0.26926874,109490.0,109480.0,0.10144]
[1748357060370,0.20566874,109490.0,109480.0,0.10144]
[1748357060599,0.20566874,109490.0,109480.0,0.64558772]
[1748357060822,0.20566874,109490.0,109480.0,0.8442542]
[1748357061081,0.03213658,109490.0,109480.0,0.98417574]
[1748357061575,0.22393491,109490.0,109480.0,0.98417574]
[1748357061845,0.22393491,109490.0,109480.0,0.99330932]
[1748357062357,0.04126916,109490.0,109480.0,1.29638874]
[1748357062665,0.05040233,109490.0,109480.0,1.30705995]
[1748357062860,0.04126891,109490.0,109480.0,2.15219255]
[1748357063304,0.03213591,109490.0,109480.0,2.15219255]
[1748357063547,0.22393399,109490.0,109480.0,1.61876212]
[1748357063814,0.22293457,109490.0,109480.0,1.72023679]
[1748357064033,0.22293457,109490.0,109480.0,1.72937054]
[1748357064259,0.22293457,109490.0,109480.0,2.12937054]
[1748357064512,0.22293457,109490.0,109480.0,1.69320258]
[1748357064840,0.22293457,109490.0,109480.0,2.12937054]
[1748357065061,0.22293457,109490.0,109480.0,1.48868712]
[1748357065294,0.27886366,109490.0,109480.0,0.01267121]
[1748357065498,0.27886366,109490.0,109480.0,0.11211121]
[1748357065935,0.31126366,109490.0,109480.0,0.11211121]
[1748357066141,0.31126366,109490.0,109480.0,0.10144]
[1748357067253,0.31976039,109490.0,109480.0,0.10144]
[1748357067478,0.31126366,109490.0,109480.0,0.09944]
[1748357067705,0.22381568,109480.0,109470.0,0.40533235]
[1748357067911,0.22381568,109480.0,109470.0,0.50477235]
[1748357070701,0.19181568,109480.0,109470.0,0.50677235]
[1748357071791,0.22291568,109480.0,109470.0,0.50677235]
[1748357072228,0.19181568,109480.0,109470.0,0.50677235]
[1748357072643,0.20033157,109480.0,109470.0,0.50677235]
[1748357072884,0.20033151,109480.0,109470.0,0.50677235]
[1748357073102,0.19181568,109480.0,109470.0,0.50677235]
[1748357073746,0.2003315,109480.0,109470.0,0.50677235]
[1748357073984,0.19181568,109480.0,109470.0,0.50677235]
[1748357074434,0.20033065,109480.0,109470.0,0.50677235]
[1748357074872,0.19181568,109480.0,109470.0,0.50677235]
[1748357075991,0.20094951,109480.0,109470.0,1.13477368]
[1748357076214,0.19181568,109480.0,109470.0,0.94351031]
[1748357076645,0.49833557,109490.0,109480.0,0.19181584]
[1748357076864,0.01826742,109480.0,109470.0,1.0656635]
[1748357077070,0.03653484,109480.0,109470.0,1.0656635]
[1748357077288,0.20094968,109480.0,109470.0,0.29723956]
[1748357078798,0.19181576,109480.0,109470.0,0.29723956]
[1748357080330,0.23754094,109480.0,109470.0,0.28606721]
[1748357080576,0.40673574,109480.0,109470.0,0.002]
[1748357081218,0.75524943,109480.0,109470.0,0.002]
[1748357081431,0.1918332,109470.0,109460.0,0.01095624]
[1748357081658,0.5585532,109470.0,109460.0,0.01095624]
[1748357081927,0.19186834,109450.0,109440.0,0.93630796]
[1748357082145,0.19186834,109450.0,109440.0,0.89662191]
[1748357082362,0.19186834,109450.0,109440.0,0.55989395]
[1748357082627,0.19186834,109450.0,109440.0,1.22718487]
[1748357082847,0.20100468,109450.0,109440.0,1.12906402]
[1748357083068,0.20100468,109450.0,109440.0,1.67979002]
[1748357083268,0.20100468,109450.0,109440.0,1.61460683]
[1748357083685,0.19186834,109450.0,109440.0,1.42272096]
[1748357083893,0.19186834,109450.0,109440.0,1.61460683]
[1748357084610,0.18271514,109460.0,109450.0,0.56296834]
[1748357084845,0.18271514,109460.0,109450.0,1.21049284]
[1748357085291,0.18271514,109460.0,109450.0,0.77432488]
[1748357085520,0.18271514,109460.0,109450.0,0.76518838]
[1748357085990,0.17671514,109460.0,109450.0,0.76518838]
[1748357086225,0.17671514,109460.0,109450.0,0.77432488]
[1748357086465,0.18269845,109470.0,109460.0,0.3723]
[1748357086701,0.18269845,109470.0,109460.0,0.80846796]
[1748357086958,0.18269845,109470.0,109460.0,0.9911831]
[1748357087185,0.18269845,109470.0,109460.0,0.80846796]
[1748357087434,0.0163647,109500.0,109480.0,0.02740125]
[1748357087670,0.01286589,109530.0,109500.0,5.201194]
[1748357087902,0.02735285,109530.0,109520.0,0.55000627]
[1748357088144,0.01648696,109530.0,109520.0,0.64912627]
[1748357088373,0.01648696,109530.0,109520.0,5.62148127]
[1748357088620,0.002,109530.0,109520.0,5.62148127]
[1748357088850,0.01286522,109530.0,109520.0,5.63522309]
[1748357089307,0.00524235,109530.0,109520.0,5.64391609]
[1748357089558,0.00524235,109530.0,109520.0,5.66845694]
[1748357090036,0.00869342,109540.0,109530.0,0.61388711]
[1748357090258,0.00869342,109540.0,109530.0,6.06731606]
[1748357090500,0.00869342,109540.0,109530.0,6.47023606]
[1748357090755,0.00869342,109540.0,109530.0,6.48472747]
[1748357090988,0.002,109550.0,109540.0,0.54996795]
[1748357091224,0.002,109550.0,109540.0,6.10704204]
[1748357091680,0.002,109550.0,109540.0,6.13430291]
[1748357091907,0.002,109550.0,109540.0,6.54469681]
[1748357092168,0.002,109550.0,109540.0,6.55553867]
[1748357092414,0.002,109550.0,109540.0,6.58078801]
[1748357092646,0.002,109550.0,109540.0,1.58729662]
[1748357092879,0.002,109550.0,109540.0,6.06216448]
[1748357093108,1.524e-05,109570.0,109560.0,0.98399475]
[1748357093355,1.524e-05,109570.0,109560.0,1.20134957]
[1748357093583,0.00914107,109570.0,109560.0,1.20134957]
[1748357094047,0.01826698,109570.0,109560.0,1.20134957]
[1748357094272,0.01841547,109570.0,109560.0,1.20134957]
[1748357094487,0.03666772,109570.0,109560.0,1.15583479]
[1748357094775,0.02754189,109570.0,109560.0,0.74915073]
[1748357095000,0.0396683,109570.0,109560.0,0.74915073]
[1748357095235,0.0487948,109570.0,109560.0,0.74915081]
[1748357095708,0.22220118,109570.0,109560.0,0.74915081]
[1748357095949,0.22220118,109570.0,109560.0,0.7400239]
[1748357096432,0.02141598,109570.0,109560.0,0.7400239]
[1748357096643,0.03054248,109570.0,109560.0,0.74915073]
[1748357096851,0.02141598,109570.0,109560.0,2.63161587]
[1748357097061,0.03054239,109570.0,109560.0,1.9750049]
[1748357097320,0.2222006,109570.0,109560.0,2.41819687]
[1748357097538,0.0305423,109570.0,109560.0,2.41819687]
[1748357097772,0.00316373,109570.0,109560.0,2.44545774]
[1748357098186,0.0214158,109570.0,109560.0,2.44949687]
[1748357098405,0.01228964,109570.0,109560.0,2.44949687]
[1748357098658,0.22220034,109570.0,109560.0,1.91555604]
[1748357098890,0.22220034,109570.0,109560.0,2.01481828]
[1748357099119,0.01228964,109570.0,109560.0,2.02394511]
[1748357099344,0.21307443,109570.0,109560.0,1.98743679]
[1748357099563,0.21307443,109570.0,109560.0,2.00569103]
[1748357099781,0.21207443,109570.0,109560.0,2.00569103]
[1748357100007,0.20078412,109570.0,109560.0,1.99856395]
[1748357100221,0.19165804,109570.0,109560.0,1.43958709]
[1748357100438,0.20078462,109570.0,109560.0,1.46695809]
[1748357100644,0.19165829,109570.0,109560.0,1.46695809]
[1748357100859,0.19165829,109570.0,109560.0,1.65863387]
[1748357101084,0.18253171,109570.0,109560.0,0.369371]
[1748357101339,0.2492257,109570.0,109560.0,0.002]
[1748357101553,0.24693171,109570.0,109560.0,0.002]
[1748357101772,0.24693171,109570.0,109560.0,0.342]
[1748357101773,0.24433171,109570.0,109560.0,0.342]
[1748357101994,0.39287123,109570.0,109560.0,0.002]
[1748357102496,0.24433171,109570.0,109560.0,0.002]
[1748357102727,0.54673171,109570.0,109560.0,0.002]
[1748357102974,0.19167562,109560.0,109550.0,0.77406514]
[1748357103228,0.19067562,109560.0,109550.0,0.76811703]
[1748357103451,0.19067562,109560.0,109550.0,0.34]
[1748357103875,0.22237562,109560.0,109550.0,0.34]
[1748357104293,0.22237562,109560.0,109550.0,0.342]
[1748357105220,0.19067562,109560.0,109550.0,0.342]
[1748357106313,0.19067562,109560.0,109550.0,0.002]
[1748357107167,0.18254837,109560.0,109550.0,0.002]
[1748357107857,0.19167562,109560.0,109550.0,0.002]
[1748357108969,0.19167562,109560.0,109550.0,0.342]
[1748357109187,0.19167562,109560.0,109550.0,0.77606514]
[1748357109399,0.19167562,109560.0,109550.0,0.87510514]
[1748357109838,0.20080278,109560.0,109550.0,0.96615909]
[1748357110052,0.20080278,109560.0,109550.0,1.57227509]
[1748357110339,0.20080278,109560.0,109550.0,1.54136809]
[1748357110787,0.20080278,109560.0,109550.0,1.7330612]
[1748357111029,0.20993011,109560.0,109550.0,1.7421892]
[1748357111237,0.20080295,109560.0,109550.0,1.7421892]
[1748357111880,0.1916757,109560.0,109550.0,1.54136809]
[1748357112105,0.1916757,109560.0,109550.0,0.72955395]
[1748357112329,0.1916757,109560.0,109550.0,0.82859395]
[1748357112551,0.1916757,109560.0,109550.0,0.73754]
[1748357112986,0.18254837,109560.0,109550.0,1.56914409]
[1748357113203,0.18254837,109560.0,109550.0,1.52915309]
[1748357113416,0.18254837,109560.0,109550.0,1.48764309]
[1748357114121,0.18254837,109560.0,109550.0,1.24527114]
[1748357114331,0.17654837,109560.0,109550.0,1.03315795]
[1748357114541,0.20392985,109560.0,109550.0,1.43039909]
[1748357115450,0.19480294,109560.0,109550.0,0.99633395]
[1748357115696,0.28585689,109560.0,109550.0,0.137335]
[1748357115935,0.66005761,109560.0,109550.0,0.002]
[1748357116182,0.75885755,109560.0,109550.0,0.002]
[1748357116419,0.27073396,109550.0,109540.0,0.02724274]
[1748357116640,0.67258868,109550.0,109540.0,0.01285481]
[1748357116861,0.67058868,109550.0,109540.0,0.01285481]
[1748357117313,0.66210791,109550.0,109540.0,0.01285481]
[1748357117566,0.19172812,109530.0,109520.0,0.5187075]
[1748357117775,0.01825907,109530.0,109520.0,1.38372266]
[1748357118071,0.20998719,109530.0,109520.0,1.46324071]
[1748357118288,0.21911702,109530.0,109520.0,1.46324071]
[1748357118725,0.20998761,109530.0,109520.0,1.46324071]
[1748357118937,0.20085795,109530.0,109520.0,1.32457971]
[1748357119382,0.20085795,109530.0,109520.0,0.89051457]
[1748357119807,0.20085795,109530.0,109520.0,1.23200981]
[1748357120018,0.20085795,109530.0,109520.0,1.23400981]
[1748357120229,0.18259837,109530.0,109520.0,1.15766099]
[1748357120451,0.18259837,109530.0,109520.0,0.85181095]
[1748357120911,0.18259837,109530.0,109520.0,1.04355674]
[1748357121124,0.18259837,109530.0,109520.0,1.0526874]
[1748357121338,0.17659837,109530.0,109520.0,1.3491874]
[1748357121961,0.17659837,109530.0,109520.0,1.14831095]
[1748357122184,0.17659837,109530.0,109520.0,1.04931095]
[1748357122390,0.24229236,109530.0,109520.0,1.14831095]
[1748357122604,0.23999837,109530.0,109520.0,1.14831095]
[1748357123047,0.23999837,109530.0,109520.0,1.04931095]
[1748357124119,0.54235837,109530.0,109520.0,0.39945524]
[1748357125247,0.64795317,109530.0,109520.0,0.39745524]
[1748357125738,0.64895317,109530.0,109520.0,0.39745524]
[1748357126165,0.64895317,109530.0,109520.0,0.39645524]
[1748357126384,0.73210666,109530.0,109520.0,0.00249524]
[1748357126825,0.73310666,109530.0,109520.0,0.00249524]
[1748357128818,0.73110666,109530.0,109520.0,0.00249524]
[1748357129029,0.74210666,109530.0,109520.0,0.00249524]
[1748357129249,0.73810666,109530.0,109520.0,0.00249524]
[1748357129495,0.73710666,109530.0,109520.0,0.00249524]
[1748357129910,0.73910666,109530.0,109520.0,0.00249524]
[1748357130565,0.65595317,109530.0,109520.0,0.00249524]
[1748357130808,0.64595317,109530.0,109520.0,0.00249524]
[1748357132156,0.65595317,109530.0,109520.0,0.00249524]
[1748357132379,1.48001831,109530.0,109520.0,0.00249524]
[1748357132614,1.48001831,109530.0,109500.0,0.002]
[1748357132615,0.21543514,109510.0,109500.0,0.002]
[1748357132850,0.67158909,109510.0,109500.0,0.002]
[1748357134630,1.44565423,109510.0,109500.0,0.002]
[1748357135087,0.68650909,109510.0,109500.0,0.002]
[1748357135321,0.36918909,109510.0,109500.0,0.002]
[1748357135800,0.64200824,109510.0,109500.0,0.002]
[1748357136065,0.64700824,109510.0,109500.0,0.002]
[1748357136303,0.63787683,109510.0,109500.0,0.002]
[1748357136531,0.32484824,109510.0,109500.0,0.002]
[1748357136767,0.66158909,109510.0,109500.0,0.002]
[1748357137000,0.34238909,109510.0,109500.0,0.002]
[1748357137255,0.02626257,109510.0,109500.0,0.19378082]
[1748357137484,0.02626257,109510.0,109500.0,0.64695501]
[1748357137485,0.04452498,109510.0,109500.0,0.64695501]
[1748357137720,0.2271567,109510.0,109500.0,0.64695509]
[1748357137975,0.2231567,109510.0,109500.0,0.49074509]
[1748357138192,0.2191567,109510.0,109500.0,0.49074509]
[1748357138403,0.2201567,109510.0,109500.0,0.91567832]
[1748357138631,0.2201567,109510.0,109500.0,1.27394215]
[1748357138632,0.001,109510.0,109500.0,1.27394215]
[1748357138845,0.21915637,109510.0,109500.0,1.26481032]
[1748357139077,0.02839316,109510.0,109500.0,1.27394215]
[1748357139297,0.02839316,109510.0,109500.0,0.84087701]
[1748357139510,0.03752466,109510.0,109500.0,1.26581032]
[1748357139722,0.22015629,109510.0,109500.0,1.26580981]
[1748357140051,0.21102546,109510.0,109500.0,1.2566779]
[1748357140151,0.01926207,109510.0,109500.0,1.26580973]
[1748357140444,0.01826191,109510.0,109500.0,1.26580973]
[1748357140720,0.20087927,109520.0,109500.0,1.26580973]
[1748357140721,0.00962348,109530.0,109520.0,0.23287629]
[1748357141009,0.00049423,109530.0,109520.0,3.66575981]
[1748357141225,0.00049423,109530.0,109520.0,3.95984495]
[1748357141438,0.01875298,109530.0,109520.0,3.95984495]
[1748357141673,0.00962348,109530.0,109520.0,3.52577981]
[1748357141897,0.00962348,109530.0,109520.0,4.55104895]
[1748357141898,0.02075314,109530.0,109520.0,4.55104895]
[1748357142118,0.02075314,109530.0,109520.0,4.24242085]
[1748357142352,0.00049423,109530.0,109520.0,4.24342085]
[1748357142594,0.00049423,109530.0,109520.0,1.39208987]
[1748357142817,0.00049423,109530.0,109520.0,1.39408987]
[1748357143049,0.00049423,109530.0,109520.0,6.23964601]
[1748357143277,0.02788297,109530.0,109520.0,4.53196301]
[1748357143504,0.01825891,109530.0,109520.0,2.41724887]
[1748357143727,0.20084222,109540.0,109530.0,0.23375778]
[1748357143728,0.20996802,109540.0,109530.0,0.23375778]
[1748357144020,0.20083944,109540.0,109530.0,1.88943064]
[1748357144253,0.20083944,109540.0,109530.0,1.86387272]